fUST/lending_fUST_20260111
["ID","MTS","AMOUNT","RATE_DAILY","PERIOD"]
[401334715,1768144243243,-500.0,0.00013699,2]
[401334717,1768144243252,-500.0,0.00013699,2]
[401334719,1768144243262,-500.0,0.00013699,2]
[401334721,1768144243271,-441.79967602,0.00013699,2]
[401334723,1768144243279,-295.9151759,0.00013699,2]
[401334725,1768144243288,-500.0,0.00013699,2]
[401334727,1768144243297,-268.13097792,0.00013699,2]
[401334729,1768144243307,-366.95119537,0.00013699,2]
[401334731,1768144243316,-500.0,0.00013699,2]
[401334733,1768144243325,-501.32276914,0.00013699,2]
[401334734,1768144243334,-500.0,0.00013699,2]
[401334737,1768144243343,-500.0,0.00013699,2]
[401334739,1768144243352,-345.73139261,0.00013699,2]
[401334741,1768144243361,-500.0,0.00013699,2]
[401334743,1768144243370,-500.0,0.00013699,2]
[401334745,1768144243379,-500.0,0.00013699,2]
[401334746,1768144243389,-500.0,0.00013699,2]
[401334748,1768144243400,-459.0,0.00013699,2]
[401334750,1768144243409,-500.0,0.00013699,2]
[401334752,1768144243419,-151.0,0.000137,2]
[401334754,1768144243428,-1874.0,0.0001374,2]
[401334756,1768144243439,-1002.2053155,0.00013821,2]
[401334758,1768144243448,-178.09775665,0.00013821,2]
[401334760,1768144243457,-501.6206004,0.00013821,2]
[401334762,1768144243466,-1000.0,0.00013821,2]
[401334764,1768144243475,-502.34729237,0.00013821,2]
[401334766,1768144243485,-1000.0,0.00013821,2]
[401334768,1768144243494,-1000.0,0.00013821,2]
[401334770,1768144243503,-1000.0,0.00013821,2]
[401334772,1768144243512,-1000.0,0.00013821,2]
[401334774,1768144243529,-1000.0,0.00013821,2]
[401334776,1768144243539,-1000.0,0.00013821,2]
[401334778,1768144243548,-1000.0,0.00013821,2]
[401334780,1768144243557,-1000.0,0.00013821,2]
[401334782,1768144243566,-1000.0,0.00013821,2]
[401334784,1768144243575,-1000.0,0.00013821,2]
[401334786,1768144243585,-1006.38443798,0.00013821,2]
[401334788,1768144243598,-1000.0,0.00013821,2]
[401334790,1768144243607,-1000.0,0.00013821,2]
[401334792,1768144243617,-587.59486789,0.00013821,2]
[401334794,1768144243626,-1000.0,0.00013821,2]
[401334796,1768144243636,-1000.0,0.00013821,2]
[401334798,1768144243645,-1000.0,0.00013821,2]
[401334800,1768144243654,-1000.0,0.00013821,2]
[401334801,1768144243664,-1000.0,0.00013821,2]
[401334802,1768144243673,-1000.0,0.00013821,2]
[401334803,1768144243682,-1000.0,0.00013821,2]
[401334804,1768144243692,-1000.0,0.00013821,2]
[401334805,1768144243701,-1000.0,0.00013821,2]
[401334806,1768144243710,-1000.0,0.00013821,2]
[401334807,1768144243720,-1000.0,0.00013821,2]
[401334808,1768144243729,-1000.0,0.00013821,2]
[401334809,1768144243739,-1000.0,0.00013821,2]
[401334810,1768144243748,-1000.0,0.00013821,2]
[401334811,1768144243757,-1001.21467235,0.00013821,2]
[401334812,1768144243766,-1000.0,0.00013821,2]
[401334813,1768144243774,-1000.0,0.00013821,2]
[401334814,1768144243783,-1000.0,0.00013821,2]
[401334815,1768144243795,-1000.0,0.00013821,2]
[401334816,1768144243804,-1000.0,0.00013821,2]
[401334817,1768144243813,-1000.0,0.00013821,2]
[401334818,1768144243823,-1000.0,0.00013821,2]
[401334819,1768144243833,-973.2526551,0.00013821,2]
[401334820,1768144243845,-877.75810228,0.00013821,2]
[401334821,1768144243855,-1000.0,0.00013821,2]
[401334822,1768144243866,-204.07351011,0.00013821,2]
[401334823,1768144243875,-500.76042299,0.00013821,2]
[401334824,1768144243885,-1000.0,0.00013821,2]
[401334825,1768144243894,-1000.0,0.00013821,2]
[401334826,1768144243903,-459.0,0.00013836,2]
[401334827,1768144243913,-500.0,0.00013836,2]
[401334828,1768144243924,-1883.95015618,0.00013877,2]
[401334829,1768144243933,-459.0,0.00013973,2]
[401334830,1768144243943,-500.00000003,0.00013973,2]
[401334831,1768144243953,-151.09,0.000141,2]
[401334832,1768144244043,-151.0,0.000141,2]
[401334833,1768144244052,-459.0,0.0001411,2]
[401334834,1768144244062,-1613.0,0.0001415,2]
[401334835,1768144244071,-600.0,0.00014221,2]
[401334836,1768144244081,-1000.0,0.00014247,2]
[401334837,1768144244090,-875.35271766,0.00014247,2]
[401334838,1768144244099,-1000.0,0.00014247,2]
[401334839,1768144244109,-1000.0,0.00014247,2]
[401334840,1768144244118,-671.67593478,0.00014247,2]
[401334841,1768144244127,-1000.0,0.00014247,2]
[401334842,1768144244137,-1000.0,0.00014247,2]
[401334843,1768144244146,-1000.0,0.00014247,2]
[401334844,1768144244156,-1000.0,0.00014247,2]
[401334845,1768144244166,-1000.0,0.00014247,2]
[401334846,1768144244175,-1000.31275461,0.00014247,2]
[401334847,1768144244185,-581.34216933,0.00014247,2]
[401334848,1768144244194,-1000.0,0.00014247,2]
[401334849,1768144244203,-504.32249359,0.00014247,2]
[401334850,1768144244212,-969.53593685,0.00014247,2]
[401334851,1768144244222,-1000.0,0.00014247,2]
[401334852,1768144244232,-501.52224721,0.00014247,2]
[401334853,1768144244241,-1000.0,0.00014247,2]
[401334854,1768144244251,-611.85295008,0.00014247,2]
[401334855,1768144244261,-1000.0,0.00014247,2]
[401334856,1768144244270,-1000.0,0.00014247,2]
[401334857,1768144244280,-1000.0,0.00014247,2]
[401334858,1768144244289,-1000.0,0.00014247,2]
[401334859,1768144244299,-1000.0,0.00014247,2]
[401334860,1768144244308,-1000.0,0.00014247,2]
[401334861,1768144244318,-159.05967354,0.00014247,2]
[401334862,1768144244328,-1000.0,0.00014247,2]
[401334863,1768144244337,-783.84380117,0.00014247,2]
[401334864,1768144244346,-192.77974704,0.00014247,2]
[401334865,1768144244356,-1000.0,0.00014247,2]
[401334866,1768144244365,-1000.0,0.00014247,2]
[401334867,1768144244375,-1000.0,0.00014247,2]
[401334868,1768144244384,-1000.0,0.00014247,2]
[401334869,1768144244394,-1000.0,0.00014247,2]
[401334870,1768144244404,-1029.61129365,0.00014247,2]
[401334871,1768144244413,-1000.0,0.00014247,2]
[401334872,1768144244422,-1000.0,0.00014247,2]
[401334873,1768144244432,-1000.0,0.00014247,2]
[401334874,1768144244442,-1000.0,0.00014247,2]
[401334875,1768144244451,-1000.0,0.00014247,2]
[401334876,1768144244461,-1000.0,0.00014247,2]
[401334877,1768144244470,-1000.0,0.00014247,2]
[401334878,1768144244480,-710.18768542,0.00014247,2]
[401334879,1768144244489,-1000.0,0.00014247,2]
[401334880,1768144244498,-1000.0,0.00014247,2]
[401334881,1768144244508,-1000.0,0.00014247,2]
[401334882,1768144244517,-1000.0,0.00014247,2]
[401334883,1768144244526,-1000.0,0.00014247,2]
[401334884,1768144244536,-1000.0,0.00014247,2]
[401334885,1768144244545,-1000.0,0.00014247,2]
[401334886,1768144244554,-1000.0,0.00014247,2]
[401334887,1768144244564,-1000.0,0.00014247,2]
[401334888,1768144244573,-1000.0,0.00014247,2]
[401334889,1768144244583,-1000.0,0.00014247,2]
[401334890,1768144244593,-443.77041137,0.00014247,2]
[401334891,1768144244602,-500.0,0.00014247,2]
[401334892,1768144244612,-1000.0,0.00014247,2]
[401334893,1768144244621,-638.41119879,0.00014247,2]
[401334894,1768144244631,-1000.0,0.00014247,2]
[401334895,1768144244640,-1000.0,0.00014247,2]
[401334896,1768144244650,-505.42705469,0.00014247,2]
[401334897,1768144244659,-459.0,0.00014247,2]
[401334898,1768144244669,-1294.67464356,0.00014368,2]
[401334899,1768144244678,-1500.0,0.00014368,2]
[401334900,1768144244687,-1512.80470062,0.00014368,2]
[401334901,1768144244696,-1500.0,0.00014368,2]
[401334902,1768144244705,-1500.0,0.00014368,2]
[401334903,1768144244714,-554.02767991,0.00014368,2]
[401334904,1768144244723,-1500.0,0.00014368,2]
[401334905,1768144244732,-1500.0,0.00014368,2]
[401334906,1768144244742,-763.96834089,0.00014368,2]
[401334907,1768144244752,-546.83647191,0.00014368,2]
[401334908,1768144244762,-1500.0,0.00014368,2]
[401334909,1768144244772,-613.91769968,0.00014368,2]
[401334910,1768144244782,-1500.0,0.00014368,2]
[401334911,1768144244796,-1500.0,0.00014368,2]
[401334912,1768144244807,-1500.0,0.00014368,2]
[401334913,1768144244817,-1500.0,0.00014368,2]
[401334914,1768144244826,-1000.80134157,0.00014368,2]
[401334915,1768144244836,-1151.39515074,0.00014368,2]
[401334916,1768144244846,-1000.0,0.00014368,2]
[401334917,1768144244855,-1500.0,0.00014368,2]
[401334918,1768144244865,-1500.0,0.00014368,2]
[401334919,1768144244875,-1500.0,0.00014368,2]
[401334920,1768144244886,-1500.0,0.00014368,2]
[401334921,1768144244901,-1500.0,0.00014368,2]
[401334922,1768144244917,-974.37024763,0.00014368,2]
[401334924,1768144244931,-168.36851892,0.00014368,2]
[401334925,1768144244943,-1500.0,0.00014368,2]
[401334926,1768144244957,-1500.0,0.00014368,2]
[401334927,1768144244971,-1500.0,0.00014368,2]
[401334928,1768144244986,-1500.0,0.00014368,2]
[401334929,1768144244999,-1500.0,0.00014368,2]
[401334930,1768144245014,-1500.0,0.00014368,2]
[401334931,1768144245028,-1500.0,0.00014368,2]
[401334932,1768144245042,-1500.0,0.00014368,2]
[401334933,1768144245056,-723.48736773,0.00014368,2]
[401334934,1768144245070,-1500.0,0.00014368,2]
[401334935,1768144245082,-459.0,0.00014384,2]
[401334936,1768144245097,-151.0,0.000145,2]
[401334937,1768144245111,-5000.0,0.0001451,2]
[401334938,1768144245122,-459.0,0.00014521,2]
[401334939,1768144245135,-1000.0,0.00014599,2]
[401334940,1768144245147,-492.0,0.00014599,2]
[401334941,1768144245161,-151.09,0.000146,2]
[401334942,1768144245174,-459.0,0.00014658,2]
[401334943,1768144245187,-456.97223261,0.00014703,2]
[401334944,1768144245202,-100000.0,0.00014736,2]
[401334945,1768144245216,-900.0,0.00014768,2]
[401334946,1768144245231,-500.79965419,0.00014795,2]
[401334947,1768144245243,-1157.07022264,0.00014795,2]
[401334948,1768144245256,-1514.12213244,0.00014795,2]
[401334949,1768144245267,-488.64589349,0.00014795,2]
[401334950,1768144245281,-1500.0,0.00014795,2]
[401334951,1768144245296,-1500.0,0.00014795,2]
[401334952,1768144245309,-501.33075681,0.00014795,2]
[401334953,1768144245320,-1500.0,0.00014795,2]
[401334954,1768144245333,-1500.0,0.00014795,2]
[401334955,1768144245347,-161.478767,0.00014795,2]
[401334956,1768144245360,-502.38932755,0.00014795,2]
[401334957,1768144245371,-1102.53259662,0.00014795,2]
[401334958,1768144245382,-1001.3782102,0.00014795,2]
[401334959,1768144245395,-1236.28209818,0.00014795,2]
[401334960,1768144245407,-1500.0,0.00014795,2]
[401334961,1768144245418,-1499.24471264,0.00014795,2]
[401334962,1768144245430,-1500.0,0.00014795,2]
[401334963,1768144245443,-1500.0,0.00014795,2]
[401334964,1768144245454,-500.0,0.00014795,2]
[401334965,1768144245466,-1500.0,0.00014795,2]
[401334966,1768144245478,-1500.0,0.00014795,2]
[401334967,1768144245491,-1163.68911449,0.00014795,2]
[401334968,1768144245503,-1500.0,0.00014795,2]
[401334969,1768144245514,-503.75899236,0.00014795,2]
[401334970,1768144245525,-1500.0,0.00014795,2]
[401334971,1768144245536,-1516.76085072,0.00014795,2]
[401334972,1768144245548,-1500.0,0.00014795,2]
[401334973,1768144245560,-1500.0,0.00014795,2]
[401334974,1768144245571,-1500.0,0.00014795,2]
[401334975,1768144245583,-788.05151213,0.00014795,2]
[401334976,1768144245595,-1500.0,0.00014795,2]
[401334977,1768144245607,-1002.56553603,0.00014795,2]
[401334978,1768144245619,-1500.0,0.00014795,2]
[401334979,1768144245631,-892.83683556,0.00014795,2]
[401334980,1768144245643,-1500.0,0.00014795,2]
[401334981,1768144245655,-1500.0,0.00014795,2]
[401334982,1768144245667,-1500.0,0.00014795,2]
[401334983,1768144245680,-514.14829436,0.00014795,2]
[401334984,1768144245692,-1482.84709438,0.00014795,2]
[401334985,1768144245703,-1500.0,0.00014795,2]
[401334986,1768144245716,-304.84096496,0.00014795,2]
[401334987,1768144245727,-1500.0,0.00014795,2]
[401334988,1768144245739,-1509.97698878,0.00014795,2]
[401334989,1768144245751,-1500.0,0.00014795,2]
[401334990,1768144245763,-459.0,0.00014795,2]
[401334992,1768144245775,-454.23047744,0.000149,2]
[401334994,1768144245788,-454.23047744,0.000149,2]
[401334996,1768144245800,-454.23047744,0.000149,2]
[401334998,1768144245812,-154502.517058,0.000149,2]
[401335000,1768144245823,-192.00163587,0.00014916,2]
[401335003,1768144245836,-2000.0,0.00014916,2]
[401335005,1768144245848,-603.18109463,0.00014916,2]
[401335007,1768144245859,-1498.81892914,0.00014916,2]
[401335009,1768144245872,-2000.0,0.00014916,2]
[401335012,1768144245884,-1485.3091038,0.00014916,2]
[401335015,1768144245897,-2000.0,0.00014916,2]
[401335018,1768144245908,-1965.81779273,0.00014916,2]
[401335021,1768144245921,-1150.76965904,0.00014916,2]
[401335025,1768144245933,-2000.0,0.00014916,2]
[401335029,1768144245946,-2000.0,0.00014916,2]
[401335031,1768144245958,-1374.68815725,0.00014916,2]
[401335036,1768144246093,-2000.0,0.00014916,2]
[401335037,1768144246111,-2000.0,0.00014916,2]
[401335038,1768144246121,-2000.0,0.00014916,2]
[401335039,1768144246130,-613.36442406,0.00014916,2]
[401335040,1768144246139,-2000.0,0.00014916,2]
[401335041,1768144246149,-2000.0,0.00014916,2]
[401335042,1768144246159,-1374.83618263,0.00014916,2]
[401335043,1768144246169,-2000.0,0.00014916,2]
[401335044,1768144246178,-2000.0,0.00014916,2]
[401335046,1768144246188,-2000.0,0.00014916,2]
[401335047,1768144246197,-1502.33157316,0.00014916,2]
[401335048,1768144246206,-2000.0,0.00014916,2]
[401335049,1768144246215,-459.0,0.00014932,2]
[401335050,1768144246224,-1000.0,0.00015,2]
[401335051,1768144246234,-3429.65312779,0.00015003,2]
[401335052,1768144246243,-800.0,0.00015068,2]
[401335053,1768144246252,-459.0,0.00015069,2]
[401335055,1768144246262,-151.09,0.000152,2]
[401335057,1768144246271,-467.3298436,0.00015206,2]
[401335059,1768144246281,-1200.0,0.00015316,2]
[401335061,1768144246290,-2000.0,0.00015342,2]
[401335063,1768144246299,-674.14847626,0.00015342,2]
[401335065,1768144246309,-1089.88646751,0.00015342,2]
[401335067,1768144246318,-2097.05305078,0.00015342,2]
[401335069,1768144246328,-500.0,0.00015342,2]
[401335071,1768144246337,-2143.18421046,0.00015342,2]
[401335073,1768144246347,-885.09915474,0.00015342,2]
[401335075,1768144246357,-2000.0,0.00015342,2]
[401335077,1768144246367,-387.26034109,0.00015342,2]
[401335080,1768144246377,-1000.0,0.00015342,2]
[401335082,1768144246386,-1144.01857865,0.00015342,2]
[401335084,1768144246396,-1426.89565163,0.00015342,2]
[401335086,1768144246405,-1004.51727604,0.00015342,2]
[401335088,1768144246415,-2000.0,0.00015342,2]
[401335090,1768144246425,-304.72135436,0.00015342,2]
[401335092,1768144246434,-2000.0,0.00015342,2]
[401335094,1768144246443,-2140.95571878,0.00015342,2]
[401335096,1768144246453,-2000.0,0.00015342,2]
[401335098,1768144246463,-525.59078617,0.00015342,2]
[401335100,1768144246475,-2000.0,0.00015342,2]
[401335102,1768144246484,-1501.01375621,0.00015342,2]
[401335104,1768144246493,-2000.0,0.00015342,2]
[401335106,1768144246503,-2500.0,0.00015464,2]
[401335108,1768144246512,-2500.0,0.00015464,2]
[401335110,1768144246520,-170.16316784,0.00015464,2]
[401335112,1768144246530,-2500.0,0.00015464,2]
[401335114,1768144246539,-2500.0,0.00015464,2]
[401335115,1768144246548,-2500.0,0.00015464,2]
[401335118,1768144246559,-1466.62413338,0.00015464,2]
[401335120,1768144246568,-555.48898116,0.00015464,2]
[401335122,1768144246578,-2500.0,0.00015464,2]
[401335124,1768144246587,-2500.0,0.00015464,2]
[401335125,1768144246596,-281.06836301,0.00015464,2]
[401335128,1768144246607,-2500.0,0.00015464,2]
[401335130,1768144246616,-2500.0,0.00015464,2]
[401335132,1768144246626,-2500.0,0.00015464,2]
[401335134,1768144246635,-2258.0,0.00015565,2]
[401335135,1768144246644,-151.09,0.000157,2]
[401335137,1768144246653,-1500.0,0.00015864,2]
[401335140,1768144246663,-2500.0,0.0001589,2]
[401335142,1768144246672,-2500.0,0.0001589,2]
[401335143,1768144246681,-2134.65901332,0.0001589,2]
[401335145,1768144246691,-2500.0,0.0001589,2]
[401335147,1768144246700,-2500.0,0.0001589,2]
[401335149,1768144246710,-2500.0,0.0001589,2]
[401335151,1768144246719,-2500.0,0.0001589,2]
[401335154,1768144246729,-3000.0,0.00016012,2]
[401335156,1768144246738,-3000.0,0.00016012,2]
[401335158,1768144246747,-3000.0,0.00016012,2]
[401335160,1768144246757,-1506.66545063,0.00016012,2]
[401335162,1768144246767,-3000.0,0.00016012,2]
[401335164,1768144246776,-3000.0,0.00016012,2]
[401335166,1768144246786,-3000.0,0.00016012,2]
[401335168,1768144246798,-3000.0,0.00016012,2]
[401335170,1768144246808,-1397.40421659,0.00016012,2]
[401335172,1768144246817,-3000.0,0.00016012,2]
[401335174,1768144246826,-1000.0,0.00016059,2]
[401335176,1768144246837,-791.0,0.00016059,2]
[401335178,1768144246847,-1600.0,0.00016164,2]
[401335180,1768144246856,-151.09,0.000162,2]
[401335182,1768144246866,-1800.0,0.00016412,2]
[401335184,1768144246875,-500.0,0.00016438,2]
[401335186,1768144246884,-500.0,0.00016438,2]
[401335188,1768144246893,-500.0,0.00016438,2]
[401335190,1768144246902,-500.0,0.00016438,2]
[401335192,1768144246912,-500.0,0.00016438,2]
[401335194,1768144246922,-500.0,0.00016438,2]
[401335196,1768144246932,-247.4409887,0.00016438,2]
[401335198,1768144246941,-500.0,0.00016438,2]
[401335200,1768144246951,-164.19129262,0.00016438,2]
[401335202,1768144246960,-2552.92932298,0.00016438,2]
[401335204,1768144246970,-3000.0,0.00016438,2]
[401335206,1768144246979,-3002.60955562,0.00016438,2]
[401335208,1768144246988,-3000.0,0.00016438,2]
[401335210,1768144246998,-3000.0,0.00016438,2]
[401335212,1768144247007,-3000.0,0.00016438,2]
[401335214,1768144247016,-260.15865923,0.00016438,2]
[401335215,1768144247025,-200.0,0.00016473,2]
[401335218,1768144247035,-3500.0,0.0001656,2]
[401335220,1768144247044,-3500.0,0.0001656,2]
[401335222,1768144247053,-3500.0,0.0001656,2]
[401335224,1768144247063,-3500.0,0.0001656,2]
[401335226,1768144247072,-3442.53787952,0.0001656,2]
[401335228,1768144247081,-3500.0,0.0001656,2]
[401335230,1768144247090,-3500.0,0.0001656,2]
[401335231,1768144247099,-3500.0,0.0001656,2]
[401335233,1768144247108,-510.38457149,0.00016703,2]
[401335234,1768144247118,-151.09,0.000168,2]
[401335235,1768144247127,-2100.0,0.0001696,2]
[401335236,1768144247136,-3500.0,0.00016986,2]
[401335237,1768144247145,-3500.0,0.00016986,2]
[401335238,1768144247155,-3500.0,0.00016986,2]
[401335239,1768144247165,-3500.0,0.00016986,2]
[401335241,1768144247174,-4000.0,0.00017108,2]
[401335242,1768144247184,-2462.04250286,0.00017108,2]
[401335243,1768144247194,-3500.0,0.00017108,2]
[401335244,1768144247204,-4000.0,0.00017108,2]
[401335245,1768144247213,-4000.0,0.00017108,2]
[401335246,1768144247222,-4000.0,0.00017108,2]
[401335248,1768144247232,-4000.0,0.00017108,2]
[401335250,1768144247242,-1730.0,0.00017122,2]
[401335251,1768144247252,-1901.71937705,0.0001726,2]
[401335253,1768144247261,-151.09,0.000173,2]
[401335255,1768144247270,-5000.0,0.00017412,2]
[401335256,1768144247280,-2400.0,0.00017508,2]
[401335257,1768144247288,-1078.16970935,0.00017534,2]
[401335258,1768144247297,-4000.0,0.00017534,2]
[401335259,1768144247307,-4000.0,0.00017534,2]
[401335260,1768144247319,-4000.0,0.00017534,2]
[401335261,1768144247329,-4500.0,0.00017656,2]
[401335262,1768144247339,-4500.0,0.00017656,2]
[401335263,1768144247349,-4500.0,0.00017656,2]
[401335264,1768144247359,-1378.46600243,0.00017656,2]
[401335265,1768144247369,-4500.0,0.00017656,2]
[401335266,1768144247379,-1000.0,0.00017665,2]
[401335267,1768144247388,-1000.0,0.00017665,2]
[401335268,1768144247398,-151.09,0.000178,2]
[401335269,1768144247408,-400.0,0.00017842,2]
[401335270,1768144247418,-744.72420012,0.00018056,2]
[401335271,1768144247427,-4500.0,0.00018082,2]
[401335272,1768144247437,-4500.0,0.00018082,2]
[401335273,1768144247447,-4500.0,0.00018082,2]
[401335274,1768144247456,-4495.04726907,0.00018204,2]
[401335275,1768144247467,-2642.48470631,0.00018204,2]
[401335276,1768144247478,-5000.0,0.00018204,2]
[401335277,1768144247489,-5000.0,0.00018204,2]
[401335278,1768144247500,-151.09,0.000184,2]
[401335279,1768144247511,-5000.0,0.0001863,2]
[401335280,1768144247522,-5000.0,0.0001863,2]
[401335281,1768144247532,-5000.0,0.0001863,2]
[401335282,1768144247542,-563.79691036,0.00018703,2]
[401335283,1768144247552,-5500.0,0.00018752,2]
[401335284,1768144247562,-2193.54202477,0.00018752,2]
[401335285,1768144247571,-5000.0,0.00018863,2]
[401335286,1768144247581,-151.09,0.000189,2]
[401335287,1768144247590,-506.7938,0.00019178,2]
[401335288,1768144247599,-506.7938,0.00019178,2]
[401335289,1768144247610,-200.0,0.00019178,2]
[401335290,1768144247619,-1418.97723055,0.00019178,2]
[401335291,1768144247629,-5500.0,0.00019178,2]
[401335292,1768144247639,-5500.0,0.00019178,2]
[401335293,1768144247649,-163.88,0.000192,2]
[401335294,1768144247659,-166.96,0.000192,2]
[401335295,1768144247669,-2140.41,0.000192,2]
[401335296,1768144247678,-13367.01,0.000192,2]
[401335297,1768144247688,-167.58,0.000192,2]
[401335298,1768144247698,-2732.45700431,0.000193,2]
[401335299,1768144247707,-151.09,0.000194,2]
[401335300,1768144247717,-1000.0,0.00019431,2]
[401335301,1768144247727,-1000.0,0.00019431,2]
[401335302,1768144247736,-579.0,0.00019431,2]
[401335303,1768144247746,-6000.0,0.00019726,2]
[401335304,1768144247755,-5461.92726002,0.00019726,2]
[401335305,1768144247764,-556.3,0.00019918,2]
[401335306,1768144247774,-151.09,0.0002,2]
[401335307,1768144247783,-727.78714077,0.0002,2]
[401335308,1768144247796,-506.7938,0.0002,4]
[401335309,1768144247805,-506.7938,0.0002,4]
[401335310,1768144247816,-151.97857558,0.0002,2]
[401335311,1768144247825,-6500.0,0.00020274,2]
[401335312,1768144247835,-506.7924,0.00020411,5]
[401335313,1768144247844,-151.09,0.000205,2]
[401335314,1768144247854,-2938.569672,0.00020548,2]
[401335315,1768144247865,-617.20924924,0.00020703,2]
[401335316,1768144247874,-7000.0,0.00020822,2]
[401335317,1768144247884,-234.89,0.0002089,2]
[401335318,1768144247893,-151.0,0.000209,4]
[401335319,1768144247903,-151.0,0.000209,4]
[401335320,1768144247914,-151.0,0.000209,4]
[401335321,1768144247924,-3000.0,0.00021,2]
[401335322,1768144247933,-151.09,0.00021,2]
[401335323,1768144247943,-3000.0,0.0002101,2]
[401335324,1768144247952,-3000.0,0.0002102,2]
[401335325,1768144247962,-3000.0,0.0002103,2]
[401335326,1768144247972,-3000.0,0.0002104,2]
[401335327,1768144247982,-3429.65312779,0.00021042,2]
[401335329,1768144247991,-3000.0,0.0002105,2]
[401335330,1768144248001,-3000.0,0.0002106,2]
[401335332,1768144248010,-3000.0,0.0002107,2]
[401335334,1768144248019,-3000.0,0.0002108,2]
[401335335,1768144248029,-3000.0,0.0002109,2]
[401335336,1768144248038,-3000.0,0.000211,2]
[401335337,1768144248048,-13367.01,0.000211,2]
[401335338,1768144248058,-3000.0,0.0002111,2]
[401335339,1768144248067,-3000.0,0.0002112,2]
[401335340,1768144248076,-3000.0,0.0002113,2]
[401335341,1768144248086,-3000.0,0.0002114,2]
[401335342,1768144248096,-3000.0,0.0002115,2]
[401335343,1768144248106,-3000.0,0.0002116,2]
[401335344,1768144248115,-3000.0,0.0002117,2]
[401335345,1768144248125,-3000.0,0.0002118,2]
[401335346,1768144248136,-3000.0,0.0002119,2]
[401335347,1768144248145,-3000.0,0.000212,2]
[401335348,1768144248154,-3000.0,0.0002121,2]
[401335349,1768144248164,-4607.873913,0.0002122,2]
[401335350,1768144248174,-567.54835774,0.0002137,2]
[401335351,1768144248183,-1000.0,0.00021374,10]
[401335352,1768144248193,-1000.0,0.00021374,10]
[401335353,1768144248204,-1000.0,0.00021374,10]
[401335354,1768144248213,-556.3,0.00021471,2]
[401335355,1768144248223,-151.09,0.000216,2]
[401335356,1768144248232,-152.90727816,0.00021918,2]
[401335357,1768144248241,-281.87,0.00022069,2]
[401335358,1768144248250,-151.09,0.000221,2]
[401335359,1768144248351,-151.09,0.000226,2]
[401335360,1768144248361,-670.62158812,0.00022703,2]
[401335361,1768144248370,-556.3,0.00023024,2]
[401335362,1768144248380,-151.09,0.000232,2]
[401335363,1768144248390,-1000.0,0.00023511,10]
[401335364,1768144248405,-1000.0,0.00023511,10]
[401335365,1768144248415,-1000.0,0.00023511,10]
[401335366,1768144248425,-715.0,0.00023511,10]
[401335367,1768144248434,-2140.41,0.000236,14]
[401335368,1768144248445,-151.09,0.000237,2]
[401335369,1768144248455,-151.09,0.000243,2]
[401335370,1768144248464,-556.3,0.00024577,2]
[401335371,1768144248475,-500.0,0.00024658,2]
[401335372,1768144248485,-724.03392699,0.00024703,2]
[401335373,1768144248494,-500.0,0.00024795,2]
[401335374,1768144248504,-151.09,0.000248,2]
[401335375,1768144248515,-151.0,0.000249,7]
[401335376,1768144248524,-151.0,0.000249,7]
[401335377,1768144248535,-466.694893,0.000249,7]
[401335378,1768144248544,-466.694893,0.000249,7]
[401335379,1768144248554,-466.694893,0.000249,7]
[401335380,1768144248564,-466.694893,0.000249,7]
[401335381,1768144248575,-151.0,0.000249,7]
[401335382,1768144248585,-1638.845663,0.000249,7]
[401335383,1768144248596,-1638.845663,0.000249,7]
[401335384,1768144248607,-151.0,0.000249,7]
[401335385,1768144248617,-165.523557,0.000249,7]